[Event "Titled Tuesday Blitz June 07 Late 2022"]
[White "Martinez Alcantara, Jose Eduardo"]
[Black "Moussard, Jules"]
[WhiteFideId "3805662"]
[BlackFideId "642908"]
[WhiteElo "2703"]
[BlackElo "2589"]
[Result "1/2-1/2"]
[Round "09"]
[TimeControl "180+1"]
[Date "2022.06.07"]
[WhiteClock "0:00:03"]
[BlackClock "0:00:04"]

1. e4 {[%clk 0:03:00]}  e5 {[%clk 0:02:57]} 2. Nf3 {[%clk 0:03:00]}  d6 {[%clk 0:02:57]} 3. d4 {[%clk 0:02:59]}  exd4 {[%clk 0:02:58]} 4. Nxd4 {[%clk 0:02:59]}  Nf6 {[%clk 0:02:59]} 5. Nc3 {[%clk 0:02:59]}  Be7 {[%clk 0:03:00]} 6. g3 {[%clk 0:03:00]}  O-O {[%clk 0:03:00]} 7. Bg2 {[%clk 0:03:01]}  Re8 {[%clk 0:03:01]} 8. O-O {[%clk 0:03:01]}  Bf8 {[%clk 0:03:01]} 9. h3 {[%clk 0:03:00]}  Nc6 {[%clk 0:03:00]} 10. Nde2 {[%clk 0:02:58]}  Rb8 {[%clk 0:02:57]} 11. g4 {[%clk 0:02:43]}  b5 {[%clk 0:02:55]} 12. Ng3 {[%clk 0:02:44]}  b4 {[%clk 0:02:53]} 13. Nce2 {[%clk 0:02:44]}  Ba6 {[%clk 0:02:52]} 14. Re1 {[%clk 0:02:44]}  g6 {[%clk 0:02:44]} 15. a3 {[%clk 0:02:39]}  bxa3 {[%clk 0:02:31]} 16. Rxa3 {[%clk 0:02:38]}  Bb7 {[%clk 0:02:31]} 17. Re3 {[%clk 0:02:16]}  Bg7 {[%clk 0:02:30]} 18. b3 {[%clk 0:02:16]}  Nd7 {[%clk 0:02:29]} 19. Bd2 {[%clk 0:02:07]}  Nc5 {[%clk 0:02:21]} 20. Bc3 {[%clk 0:02:06]}  Bxc3 {[%clk 0:02:21]} 21. Rxc3 {[%clk 0:02:00]}  Nb4 {[%clk 0:02:08]} 22. Re3 {[%clk 0:01:55]}  Qf6 {[%clk 0:02:00]} 23. c3 {[%clk 0:01:44]}  Nc6 {[%clk 0:01:55]} 24. b4 {[%clk 0:01:44]}  Nd7 {[%clk 0:01:54]} 25. f4 {[%clk 0:01:39]}  Nb6 {[%clk 0:01:51]} 26. Qd3 {[%clk 0:01:32]}  a5 {[%clk 0:01:26]} 27. e5 {[%clk 0:01:07]}  dxe5 {[%clk 0:01:22]} 28. Ne4 {[%clk 0:01:07]}  Qd8 {[%clk 0:01:20]} 29. b5 {[%clk 0:00:55]}  exf4 {[%clk 0:01:02]} 30. bxc6 {[%clk 0:00:45]}  Bxc6 {[%clk 0:00:54]} 31. Nxf4 {[%clk 0:00:32]}  Qxd3 {[%clk 0:00:51]} 32. Nxd3 {[%clk 0:00:33]}  Kg7 {[%clk 0:00:51]} 33. g5 {[%clk 0:00:30]}  Nc4 {[%clk 0:00:51]} 34. R3e2 {[%clk 0:00:30]}  h6 {[%clk 0:00:49]} 35. h4 {[%clk 0:00:29]}  hxg5 {[%clk 0:00:48]} 36. hxg5 {[%clk 0:00:30]}  Rb5 {[%clk 0:00:48]} 37. Nec5 {[%clk 0:00:27]}  Rxe2 {[%clk 0:00:49]} 38. Rxe2 {[%clk 0:00:27]}  Bxg2 {[%clk 0:00:49]} 39. Kxg2 {[%clk 0:00:28]}  a4 {[%clk 0:00:48]} 40. Nxa4 {[%clk 0:00:19]}  Rxg5+ {[%clk 0:00:49]} 41. Kf2 {[%clk 0:00:19]}  Nd6 {[%clk 0:00:49]} 42. Nac5 {[%clk 0:00:19]}  Rg4 {[%clk 0:00:49]} 43. Re7 {[%clk 0:00:18]}  Rc4 {[%clk 0:00:37]} 44. Rxc7 {[%clk 0:00:18]}  Rxc3 {[%clk 0:00:37]} 45. Kf3 {[%clk 0:00:14]}  Nb5 {[%clk 0:00:36]} 46. Rc8 {[%clk 0:00:12]}  Ra3 {[%clk 0:00:32]} 47. Rd8 {[%clk 0:00:12]}  Kf6 {[%clk 0:00:29]} 48. Ke3 {[%clk 0:00:12]}  Nc7 {[%clk 0:00:28]} 49. Rd6+ {[%clk 0:00:13]}  Ne6 {[%clk 0:00:28]} 50. Ne4+ {[%clk 0:00:12]}  Ke7 {[%clk 0:00:28]} 51. Rd5 {[%clk 0:00:13]}  g5 {[%clk 0:00:26]} 52. Re5 {[%clk 0:00:08]}  f6 {[%clk 0:00:24]} 53. Rb5 {[%clk 0:00:08]}  Kf7 {[%clk 0:00:23]} 54. Rb6 {[%clk 0:00:06]}  Nf4 {[%clk 0:00:18]} 55. Rb7+ {[%clk 0:00:05]}  Kg6 {[%clk 0:00:18]} 56. Nc5 {[%clk 0:00:06]}  Nd5+ {[%clk 0:00:17]} 57. Kd4 {[%clk 0:00:06]}  Nf4 {[%clk 0:00:18]} 58. Nxf4+ {[%clk 0:00:06]}  gxf4 {[%clk 0:00:19]} 59. Ke4 {[%clk 0:00:05]}  f3 {[%clk 0:00:17]} 60. Rb2 {[%clk 0:00:05]}  Kg5 {[%clk 0:00:16]} 61. Ne6+ {[%clk 0:00:05]}  Kg4 {[%clk 0:00:16]} 62. Nd4 {[%clk 0:00:06]}  Ra4 {[%clk 0:00:14]} 63. Ke3 {[%clk 0:00:05]}  f5 {[%clk 0:00:14]} 64. Rd2 {[%clk 0:00:03]}  Ra1 {[%clk 0:00:11]} 65. Kf2 {[%clk 0:00:01]}  Ra3 {[%clk 0:00:11]} 66. Nc6 {[%clk 0:00:02]}  Rc3 {[%clk 0:00:10]} 67. Ne5+ {[%clk 0:00:02]}  Kf4 {[%clk 0:00:11]} 68. Ng6+ {[%clk 0:00:02]}  Kg5 {[%clk 0:00:11]} 69. Ne7 {[%clk 0:00:03]}  Kg4 {[%clk 0:00:09]} 70. Ng6 {[%clk 0:00:03]}  Kg5 {[%clk 0:00:08]} 71. Ne7 {[%clk 0:00:03]}  Kg4 {[%clk 0:00:08]} 72. Nd5 {[%clk 0:00:03]}  Ra3 {[%clk 0:00:09]} 73. Rd4+ {[%clk 0:00:04]}  Kg5 {[%clk 0:00:09]} 74. Nf4 {[%clk 0:00:04]}  Ra2+ {[%clk 0:00:08]} 75. Kg3 {[%clk 0:00:04]}  f2 {[%clk 0:00:08]} 76. Nh3+ {[%clk 0:00:04]}  Kf6 {[%clk 0:00:08]} 77. Nxf2 {[%clk 0:00:04]}  Ke5 {[%clk 0:00:09]} 78. Rb4 {[%clk 0:00:05]}  Ra3+ {[%clk 0:00:08]} 79. Kg2 {[%clk 0:00:05]}  f4 {[%clk 0:00:09]} 80. Nh3 {[%clk 0:00:04]}  Rg3+ {[%clk 0:00:09]} 81. Kh2 {[%clk 0:00:04]}  Rg4 {[%clk 0:00:08]} 82. Ng1 {[%clk 0:00:04]}  Rh4+ {[%clk 0:00:08]} 83. Kg2 {[%clk 0:00:04]}  Rg4+ {[%clk 0:00:08]} 84. Kf2 {[%clk 0:00:05]}  Rg3 {[%clk 0:00:09]} 85. Nf3+ {[%clk 0:00:05]}  Kf5 {[%clk 0:00:09]} 86. Ra4 {[%clk 0:00:06]}  Rg8 {[%clk 0:00:09]} 87. Nd4+ {[%clk 0:00:05]}  Ke4 {[%clk 0:00:09]} 88. Ne2+ {[%clk 0:00:06]}  Kd3 {[%clk 0:00:08]} 89. Nxf4+ {[%clk 0:00:06]}  Kc3 {[%clk 0:00:09]} 90. Nd5+ {[%clk 0:00:05]}  Kb3 {[%clk 0:00:09]} 91. Rf4 {[%clk 0:00:06]}  Rd8 {[%clk 0:00:09]} 92. Ne3 {[%clk 0:00:06]}  Rd2+ {[%clk 0:00:09]} 93. Ke1 {[%clk 0:00:06]}  Rh2 {[%clk 0:00:09]} 94. Rd4 {[%clk 0:00:05]}  Kc3 {[%clk 0:00:09]} 95. Rd8 {[%clk 0:00:05]}  Kb3 {[%clk 0:00:08]} 96. Rc8 {[%clk 0:00:05]}  Kb4 {[%clk 0:00:09]} 97. Ng4 {[%clk 0:00:04]}  Rg2 {[%clk 0:00:09]} 98. Nf2 {[%clk 0:00:05]}  Rh2 {[%clk 0:00:09]} 99. Kf1 {[%clk 0:00:05]}  Rh7 {[%clk 0:00:09]} 100. Ke2 {[%clk 0:00:05]}  Re7+ {[%clk 0:00:09]} 101. Kd2 {[%clk 0:00:05]}  Rf7 {[%clk 0:00:09]} 102. Ne4 {[%clk 0:00:05]}  Rd7+ {[%clk 0:00:09]} 103. Ke3 {[%clk 0:00:05]}  Re7 {[%clk 0:00:10]} 104. Kd4 {[%clk 0:00:05]}  Rd7+ {[%clk 0:00:10]} 105. Ke5 {[%clk 0:00:06]}  Rd1 {[%clk 0:00:10]} 106. Rb8+ {[%clk 0:00:03]}  Kc4 {[%clk 0:00:10]} 107. Rb7 {[%clk 0:00:04]}  Re1 {[%clk 0:00:09]} 108. Rc7+ {[%clk 0:00:03]}  Kd3 {[%clk 0:00:08]} 109. Rc3+ {[%clk 0:00:03]}  Ke2 {[%clk 0:00:09]} 110. Ra3 {[%clk 0:00:04]}  Rc1 {[%clk 0:00:06]} 111. Kf4 {[%clk 0:00:03]}  Rc8 {[%clk 0:00:05]} 112. Re3+ {[%clk 0:00:02]}  Kd1 {[%clk 0:00:05]} 113. Rh3 {[%clk 0:00:01]}  Re8 {[%clk 0:00:04]} 114. Rh2 {[%clk 0:00:01]}  Kc1 {[%clk 0:00:05]} 115. Ke3 {[%clk 0:00:02]}  Kb1 {[%clk 0:00:05]} 116. Kd4 {[%clk 0:00:02]}  Rd8+ {[%clk 0:00:06]} 117. Kc3 {[%clk 0:00:02]}  Rc8+ {[%clk 0:00:06]} 118. Kd3 {[%clk 0:00:03]}  Rd8+ {[%clk 0:00:06]} 119. Kc4 {[%clk 0:00:04]}  Rc8+ {[%clk 0:00:07]} 120. Nc5 {[%clk 0:00:04]}  Kc1 {[%clk 0:00:06]} 121. Kd4 {[%clk 0:00:05]}  Rd8+ {[%clk 0:00:05]} 122. Kc3 {[%clk 0:00:05]}  Kd1 {[%clk 0:00:05]} 123. Nd3 {[%clk 0:00:04]}  Rc8+ {[%clk 0:00:06]} 124. Kd4 {[%clk 0:00:04]}  Rd8+ {[%clk 0:00:06]} 125. Ke4 {[%clk 0:00:05]}  Re8+ {[%clk 0:00:07]} 126. Ne5 {[%clk 0:00:05]}  Kc1 {[%clk 0:00:08]} 127. Re2 {[%clk 0:00:05]}  Kb1 {[%clk 0:00:07]} 128. Kd3 {[%clk 0:00:05]}  Rd8+ {[%clk 0:00:06]} 129. Kc3 {[%clk 0:00:06]}  Rh8 {[%clk 0:00:03]} 130. Rf2 {[%clk 0:00:04]}  Rh3+ {[%clk 0:00:03]} 131. Nd3 {[%clk 0:00:04]}  Ka1 {[%clk 0:00:03]} 132. Rg2 {[%clk 0:00:04]}  Rf3 {[%clk 0:00:03]} 133. Rh2 {[%clk 0:00:04]}  Kb1 {[%clk 0:00:03]} 134. Rd2 {[%clk 0:00:04]}  Ka1 {[%clk 0:00:03]} 135. Kb3 {[%clk 0:00:05]}  Rf1 {[%clk 0:00:03]} 136. Rc2 {[%clk 0:00:03]}  Rb1+ {[%clk 0:00:03]} 137. Ka3 {[%clk 0:00:03]}  Rb8 {[%clk 0:00:03]} 138. Rc1+ {[%clk 0:00:02]}  Rb1 {[%clk 0:00:04]} 139. Rc2 {[%clk 0:00:03]} 1/2-1/2


[Site "https://www.chess.com"]

[Event "Titled Tuesday Blitz June 07 Late 2022"]
[White "Moroni, Luca Jr"]
[Black "Paravyan, David"]
[WhiteFideId "865834"]
[BlackFideId "4194985"]
[WhiteElo "2573"]
[BlackElo "2569"]
[Result "1/2-1/2"]
[Round "09"]
[TimeControl "180+1"]
[Date "2022.06.07"]
[WhiteClock "0:00:12"]
[BlackClock "0:00:12"]

1. c4 {[%clk 0:03:00]}  Nf6 {[%clk 0:02:59]} 2. Nc3 {[%clk 0:03:01]}  d5 {[%clk 0:02:57]} 3. cxd5 {[%clk 0:02:59]}  Nxd5 {[%clk 0:02:58]} 4. e4 {[%clk 0:03:00]}  Nb4 {[%clk 0:02:58]} 5. Bc4 {[%clk 0:02:50]}  Nd3+ {[%clk 0:02:48]} 6. Ke2 {[%clk 0:02:50]}  Nf4+ {[%clk 0:02:47]} 7. Kf1 {[%clk 0:02:50]}  Be6 {[%clk 0:02:39]} 8. Bxe6 {[%clk 0:02:14]}  Nxe6 {[%clk 0:02:40]} 9. d3 {[%clk 0:02:10]}  Nc6 {[%clk 0:02:39]} 10. Nf3 {[%clk 0:02:08]}  Ned4 {[%clk 0:02:32]} 11. Nxd4 {[%clk 0:02:04]}  Nxd4 {[%clk 0:02:32]} 12. Be3 {[%clk 0:02:04]}  c6 {[%clk 0:02:24]} 13. Qa4 {[%clk 0:01:59]}  e5 {[%clk 0:02:24]} 14. Bxd4 {[%clk 0:01:56]}  exd4 {[%clk 0:02:21]} 15. Ne2 {[%clk 0:01:56]}  Bc5 {[%clk 0:02:22]} 16. g3 {[%clk 0:01:52]}  O-O {[%clk 0:02:21]} 17. Kg2 {[%clk 0:01:50]}  Bb6 {[%clk 0:02:19]} 18. f4 {[%clk 0:01:48]}  Kh8 {[%clk 0:02:11]} 19. h4 {[%clk 0:01:43]}  f5 {[%clk 0:02:11]} 20. e5 {[%clk 0:01:40]}  Qd5+ {[%clk 0:02:09]} 21. Kf2 {[%clk 0:01:40]}  Rad8 {[%clk 0:02:04]} 22. Rac1 {[%clk 0:01:23]}  h5 {[%clk 0:02:02]} 23. Qc4 {[%clk 0:01:22]}  Kg8 {[%clk 0:01:39]} 24. Ng1 {[%clk 0:01:13]}  Qxc4 {[%clk 0:01:34]} 25. Rxc4 {[%clk 0:01:13]}  Rd5 {[%clk 0:01:33]} 26. Nf3 {[%clk 0:01:13]}  Ra5 {[%clk 0:01:30]} 27. a4 {[%clk 0:01:06]}  Rd8 {[%clk 0:01:09]} 28. Re1 {[%clk 0:01:05]}  Kf7 {[%clk 0:01:06]} 29. Re2 {[%clk 0:00:48]}  Ke7 {[%clk 0:01:05]} 30. Nd2 {[%clk 0:00:46]}  Rc5 {[%clk 0:01:00]} 31. b4 {[%clk 0:00:43]}  Rcd5 {[%clk 0:01:00]} 32. a5 {[%clk 0:00:41]}  Bc7 {[%clk 0:00:56]} 33. a6 {[%clk 0:00:41]}  Rb8 {[%clk 0:00:31]} 34. axb7 {[%clk 0:00:41]}  Kd7 {[%clk 0:00:31]} 35. Nb3 {[%clk 0:00:41]}  Bb6 {[%clk 0:00:29]} 36. e6+ {[%clk 0:00:41]}  Ke7 {[%clk 0:00:25]} 37. Rxc6 {[%clk 0:00:39]}  Rxb7 {[%clk 0:00:21]} 38. Nc5 {[%clk 0:00:33]}  Rc7 {[%clk 0:00:20]} 39. Rxc7+ {[%clk 0:00:26]}  Bxc7 {[%clk 0:00:21]} 40. Ra2 {[%clk 0:00:13]}  Bb6 {[%clk 0:00:22]} 41. Ra6 {[%clk 0:00:13]}  g6 {[%clk 0:00:20]} 42. Na4 {[%clk 0:00:13]}  Rb5 {[%clk 0:00:20]} 43. Nxb6 {[%clk 0:00:10]}  axb6 {[%clk 0:00:21]} 44. Ra4 {[%clk 0:00:10]}  Kxe6 {[%clk 0:00:21]} 45. Kf3 {[%clk 0:00:10]}  Kd6 {[%clk 0:00:20]} 46. Ke2 {[%clk 0:00:11]}  Kc6 {[%clk 0:00:20]} 47. Kd2 {[%clk 0:00:11]}  Rd5 {[%clk 0:00:19]} 48. Ra8 {[%clk 0:00:09]}  Kb5 {[%clk 0:00:19]} 49. Kc2 {[%clk 0:00:07]}  Kxb4 {[%clk 0:00:19]} 50. Kb2 {[%clk 0:00:08]}  Rd6 {[%clk 0:00:17]} 51. Re8 {[%clk 0:00:08]}  b5 {[%clk 0:00:17]} 52. Re5 {[%clk 0:00:08]}  Ka4 {[%clk 0:00:17]} 53. Re8 {[%clk 0:00:08]}  Kb4 {[%clk 0:00:16]} 54. Re5 {[%clk 0:00:08]}  Ka5 {[%clk 0:00:13]} 55. Re8 {[%clk 0:00:06]}  Kb6 {[%clk 0:00:09]} 56. Kb3 {[%clk 0:00:03]}  Rc6 {[%clk 0:00:10]} 57. Kb4 {[%clk 0:00:03]}  Rc3 {[%clk 0:00:04]} 58. Re6+ {[%clk 0:00:03]}  Rc6 {[%clk 0:00:05]} 59. Re5 {[%clk 0:00:03]}  Rc1 {[%clk 0:00:03]} 60. Re6+ {[%clk 0:00:03]}  Rc6 {[%clk 0:00:03]} 61. Re5 {[%clk 0:00:03]}  Rc2 {[%clk 0:00:03]} 62. Re6+ {[%clk 0:00:03]}  Kc7 {[%clk 0:00:02]} 63. Rxg6 {[%clk 0:00:03]}  Rc3 {[%clk 0:00:02]} 64. Kxb5 {[%clk 0:00:03]}  Kd7 {[%clk 0:00:02]} 65. Rg5 {[%clk 0:00:02]}  Rxd3 {[%clk 0:00:02]} 66. Kc4 {[%clk 0:00:03]}  Ra3 {[%clk 0:00:01]} 67. Kxd4 {[%clk 0:00:04]}  Ke6 {[%clk 0:00:02]} 68. Rg6+ {[%clk 0:00:03]}  Kf7 {[%clk 0:00:02]} 69. Rg5 {[%clk 0:00:03]}  Kf6 {[%clk 0:00:03]} 70. Kc4 {[%clk 0:00:04]}  Re3 {[%clk 0:00:03]} 71. Kd5 {[%clk 0:00:04]}  Rd3+ {[%clk 0:00:03]} 72. Kc4 {[%clk 0:00:05]}  Ra3 {[%clk 0:00:04]} 73. Kd4 {[%clk 0:00:05]}  Rb3 {[%clk 0:00:04]} 74. Rxh5 {[%clk 0:00:06]}  Rxg3 {[%clk 0:00:04]} 75. Rh6+ {[%clk 0:00:06]}  Kg7 {[%clk 0:00:04]} 76. Ra6 {[%clk 0:00:06]}  Rg4 {[%clk 0:00:04]} 77. Ke5 {[%clk 0:00:07]}  Rxh4 {[%clk 0:00:05]} 78. Ra7+ {[%clk 0:00:07]}  Kg6 {[%clk 0:00:05]} 79. Ra6+ {[%clk 0:00:07]}  Kg7 {[%clk 0:00:05]} 80. Kxf5 {[%clk 0:00:06]}  Rh5+ {[%clk 0:00:05]} 81. Kg4 {[%clk 0:00:06]}  Rd5 {[%clk 0:00:05]} 82. Rc6 {[%clk 0:00:06]}  Ra5 {[%clk 0:00:05]} 83. Kf3 {[%clk 0:00:07]}  Kf7 {[%clk 0:00:06]} 84. Ke4 {[%clk 0:00:07]}  Rb5 {[%clk 0:00:06]} 85. Rd6 {[%clk 0:00:07]}  Ra5 {[%clk 0:00:06]} 86. Rd7+ {[%clk 0:00:07]}  Ke6 {[%clk 0:00:06]} 87. Rd4 {[%clk 0:00:07]}  Kf6 {[%clk 0:00:06]} 88. Rb4 {[%clk 0:00:08]}  Rc5 {[%clk 0:00:06]} 89. Rb6+ {[%clk 0:00:07]}  Ke7 {[%clk 0:00:07]} 90. Kf3 {[%clk 0:00:08]}  Kf7 {[%clk 0:00:07]} 91. Kg4 {[%clk 0:00:08]}  Kg7 {[%clk 0:00:08]} 92. Rb7+ {[%clk 0:00:08]}  Kf6 {[%clk 0:00:08]} 93. Ra7 {[%clk 0:00:09]}  Kg6 {[%clk 0:00:08]} 94. Ra6+ {[%clk 0:00:06]}  Kf7 {[%clk 0:00:09]} 95. f5 {[%clk 0:00:06]}  Rc1 {[%clk 0:00:08]} 96. Ra7+ {[%clk 0:00:07]}  Kf6 {[%clk 0:00:08]} 97. Ra6+ {[%clk 0:00:07]}  Kf7 {[%clk 0:00:09]} 98. Ra7+ {[%clk 0:00:07]}  Kf6 {[%clk 0:00:09]} 99. Ra6+ {[%clk 0:00:07]}  Ke7 {[%clk 0:00:10]} 100. Ra7+ {[%clk 0:00:05]}  Kf8 {[%clk 0:00:10]} 101. Kg5 {[%clk 0:00:04]}  Rc6 {[%clk 0:00:11]} 102. Ra8+ {[%clk 0:00:04]}  Kf7 {[%clk 0:00:11]} 103. Ra7+ {[%clk 0:00:05]}  Kf8 {[%clk 0:00:11]} 104. Ra5 {[%clk 0:00:05]}  Kg7 {[%clk 0:00:11]} 105. Ra4 {[%clk 0:00:06]}  Kf7 {[%clk 0:00:11]} 106. Rh4 {[%clk 0:00:05]}  Kg8 {[%clk 0:00:11]} 107. Rh6 {[%clk 0:00:05]}  Rxh6 {[%clk 0:00:07]} 108. Kxh6 {[%clk 0:00:06]}  Kf7 {[%clk 0:00:08]} 109. Kg5 {[%clk 0:00:07]}  Kg7 {[%clk 0:00:08]} 110. f6+ {[%clk 0:00:08]}  Kf7 {[%clk 0:00:09]} 111. Kf5 {[%clk 0:00:08]}  Kf8 {[%clk 0:00:09]} 112. Ke6 {[%clk 0:00:09]}  Ke8 {[%clk 0:00:10]} 113. Ke5 {[%clk 0:00:09]}  Kf7 {[%clk 0:00:10]} 114. Kf5 {[%clk 0:00:09]}  Kf8 {[%clk 0:00:11]} 115. Kg6 {[%clk 0:00:10]}  Kg8 {[%clk 0:00:12]} 116. f7+ {[%clk 0:00:11]}  Kf8 {[%clk 0:00:12]} 117. Kf6 {[%clk 0:00:12]} 1/2-1/2


[Site "https://www.chess.com"]

[Event "Titled Tuesday Blitz June 07 Late 2022"]
[White "Nakamura, Hikaru"]
[Black "Jobava, Baadur"]
[WhiteFideId "2016192"]
[BlackFideId "13601520"]
[WhiteElo "2850"]
[BlackElo "2617"]
[Result "1-0"]
[Round "09"]
[TimeControl "180+1"]
[Date "2022.06.07"]
[WhiteClock "0:00:16"]
[BlackClock "0:00:09"]

1. e4 {[%clk 0:03:00]}  c6 {[%clk 0:03:00]} 2. Nc3 {[%clk 0:02:58]}  d5 {[%clk 0:03:01]} 3. Nf3 {[%clk 0:02:59]}  Bg4 {[%clk 0:03:01]} 4. h3 {[%clk 0:03:00]}  Bxf3 {[%clk 0:03:01]} 5. Qxf3 {[%clk 0:03:01]}  e6 {[%clk 0:03:02]} 6. g3 {[%clk 0:03:01]}  g6 {[%clk 0:03:01]} 7. Bg2 {[%clk 0:03:01]}  Bg7 {[%clk 0:03:02]} 8. Qe2 {[%clk 0:03:02]}  Ne7 {[%clk 0:03:02]} 9. O-O {[%clk 0:03:02]}  O-O {[%clk 0:03:02]} 10. Rd1 {[%clk 0:03:03]}  a5 {[%clk 0:03:01]} 11. d4 {[%clk 0:03:02]}  a4 {[%clk 0:03:01]} 12. Bg5 {[%clk 0:02:57]}  Re8 {[%clk 0:02:57]} 13. b3 {[%clk 0:02:50]}  axb3 {[%clk 0:02:56]} 14. cxb3 {[%clk 0:02:51]}  Nd7 {[%clk 0:02:56]} 15. Rac1 {[%clk 0:02:47]}  h6 {[%clk 0:02:54]} 16. Be3 {[%clk 0:02:45]}  Kh7 {[%clk 0:02:53]} 17. Qc2 {[%clk 0:02:44]}  dxe4 {[%clk 0:02:52]} 18. Nxe4 {[%clk 0:02:43]}  Nf5 {[%clk 0:02:52]} 19. a4 {[%clk 0:02:34]}  Qb6 {[%clk 0:02:50]} 20. Qc3 {[%clk 0:02:11]}  Red8 {[%clk 0:02:41]} 21. g4 {[%clk 0:02:09]}  Nxe3 {[%clk 0:02:41]} 22. fxe3 {[%clk 0:02:10]}  Qc7 {[%clk 0:02:02]} 23. Qc4 {[%clk 0:02:05]}  Nb6 {[%clk 0:02:01]} 24. Qe2 {[%clk 0:02:05]}  Nd5 {[%clk 0:02:01]} 25. Rd3 {[%clk 0:01:59]}  e5 {[%clk 0:01:54]} 26. dxe5 {[%clk 0:01:55]}  Qxe5 {[%clk 0:01:55]} 27. Qf2 {[%clk 0:01:50]}  Rf8 {[%clk 0:01:48]} 28. Nc5 {[%clk 0:01:47]}  Rad8 {[%clk 0:01:32]} 29. Nxb7 {[%clk 0:01:40]}  Rde8 {[%clk 0:01:20]} 30. Nc5 {[%clk 0:01:07]}  Re7 {[%clk 0:01:15]} 31. Be4 {[%clk 0:00:59]}  Rfe8 {[%clk 0:00:59]} 32. a5 {[%clk 0:00:49]}  Qg5 {[%clk 0:00:58]} 33. Bxd5 {[%clk 0:00:46]}  cxd5 {[%clk 0:00:59]} 34. Qf4 {[%clk 0:00:44]}  Qh4 {[%clk 0:00:54]} 35. Kg2 {[%clk 0:00:45]}  d4 {[%clk 0:00:50]} 36. e4 {[%clk 0:00:44]}  Be5 {[%clk 0:00:44]} 37. Qf3 {[%clk 0:00:44]}  Rb8 {[%clk 0:00:39]} 38. a6 {[%clk 0:00:42]}  Rc7 {[%clk 0:00:39]} 39. Rc4 {[%clk 0:00:38]}  Qe7 {[%clk 0:00:38]} 40. b4 {[%clk 0:00:36]}  Kg7 {[%clk 0:00:37]} 41. Rd2 {[%clk 0:00:34]}  h5 {[%clk 0:00:33]} 42. Rdc2 {[%clk 0:00:30]}  hxg4 {[%clk 0:00:31]} 43. Qxg4 {[%clk 0:00:31]}  Ra7 {[%clk 0:00:29]} 44. Rf2 {[%clk 0:00:26]}  d3 {[%clk 0:00:24]} 45. Rd2 {[%clk 0:00:23]}  Bd6 {[%clk 0:00:24]} 46. Nxd3 {[%clk 0:00:19]}  Rxa6 {[%clk 0:00:24]} 47. Rf2 {[%clk 0:00:18]}  Ra3 {[%clk 0:00:23]} 48. Rd4 {[%clk 0:00:18]}  Be5 {[%clk 0:00:23]} 49. Rd7 {[%clk 0:00:17]}  Qe8 {[%clk 0:00:09]} 50. Rfxf7+ {[%clk 0:00:16]}  Kg8 {[%clk 0:00:09]} 51. Qxg6+ {[%clk 0:00:16]} 1-0


[Site "https://www.chess.com"]

[Event "Titled Tuesday Blitz June 07 Late 2022"]
[White "Rohl Montes, Juan Armando"]
[Black "Silva, Miguel Antonio Neto"]
[WhiteFideId "3900487"]
[BlackFideId "1911929"]
[WhiteElo "2359"]
[BlackElo "2204"]
[Result "1/2-1/2"]
[Round "09"]
[TimeControl "180+1"]
[Date "2022.06.07"]
[WhiteClock "0:02:15"]
[BlackClock "0:01:43"]

1. e4 {[%clk 0:03:00]}  c5 {[%clk 0:02:57]} 2. c3 {[%clk 0:03:00]}  d5 {[%clk 0:02:53]} 3. exd5 {[%clk 0:03:00]}  Qxd5 {[%clk 0:02:54]} 4. d4 {[%clk 0:03:00]}  Nc6 {[%clk 0:02:54]} 5. Nf3 {[%clk 0:03:01]}  Bf5 {[%clk 0:02:53]} 6. Be3 {[%clk 0:03:01]}  cxd4 {[%clk 0:02:52]} 7. Nxd4 {[%clk 0:03:01]}  Nxd4 {[%clk 0:02:50]} 8. Qxd4 {[%clk 0:03:01]}  Qxd4 {[%clk 0:02:48]} 9. Bxd4 {[%clk 0:03:02]}  a6 {[%clk 0:02:46]} 10. Nd2 {[%clk 0:03:00]}  e6 {[%clk 0:02:37]} 11. Be2 {[%clk 0:02:57]}  Ne7 {[%clk 0:02:29]} 12. Bf3 {[%clk 0:02:53]}  Nc6 {[%clk 0:02:29]} 13. Bxc6+ {[%clk 0:02:48]}  bxc6 {[%clk 0:02:28]} 14. Nc4 {[%clk 0:02:43]}  c5 {[%clk 0:02:19]} 15. Be5 {[%clk 0:02:30]}  Rd8 {[%clk 0:02:07]} 16. Bc7 {[%clk 0:02:22]}  Rd7 {[%clk 0:02:06]} 17. Bg3 {[%clk 0:02:22]}  f6 {[%clk 0:02:03]} 18. Rd1 {[%clk 0:02:17]}  Be7 {[%clk 0:01:54]} 19. Nd6+ {[%clk 0:02:14]}  Bxd6 {[%clk 0:01:47]} 20. Rxd6 {[%clk 0:02:14]}  Rxd6 {[%clk 0:01:43]} 21. Bxd6 {[%clk 0:02:15]}  c4 {[%clk 0:01:43]} 1/2-1/2


[Site "https://www.chess.com"]

[Event "Titled Tuesday Blitz June 07 Late 2022"]
[White "Romanchuk, Viktor"]
[Black "Makaraci, Tunahan"]
[WhiteFideId "14109271"]
[BlackFideId "6356559"]
[WhiteElo "2242"]
[BlackElo "1883"]
[Result "1-0"]
[Round "09"]
[TimeControl "180+1"]
[Date "2022.06.07"]
[WhiteClock "0:00:48"]
[BlackClock "0:00:42"]

1. d4 {[%clk 0:03:00]}  Nf6 {[%clk 0:02:59]} 2. c4 {[%clk 0:03:00]}  c5 {[%clk 0:02:59]} 3. d5 {[%clk 0:03:00]}  b5 {[%clk 0:03:00]} 4. cxb5 {[%clk 0:03:00]}  e6 {[%clk 0:03:01]} 5. Nc3 {[%clk 0:02:59]}  exd5 {[%clk 0:03:01]} 6. Nxd5 {[%clk 0:02:59]}  Bb7 {[%clk 0:03:01]} 7. Nxf6+ {[%clk 0:02:56]}  Qxf6 {[%clk 0:03:02]} 8. Nf3 {[%clk 0:02:55]}  d5 {[%clk 0:03:02]} 9. g3 {[%clk 0:02:55]}  Bd6 {[%clk 0:03:02]} 10. Bg2 {[%clk 0:02:54]}  O-O {[%clk 0:03:02]} 11. O-O {[%clk 0:02:54]}  Nd7 {[%clk 0:03:02]} 12. Rb1 {[%clk 0:02:45]}  a6 {[%clk 0:03:00]} 13. bxa6 {[%clk 0:02:39]}  Rxa6 {[%clk 0:03:00]} 14. a3 {[%clk 0:02:38]}  Re8 {[%clk 0:02:54]} 15. b4 {[%clk 0:02:34]}  c4 {[%clk 0:02:54]} 16. Bb2 {[%clk 0:02:23]}  c3 {[%clk 0:02:52]} 17. Bc1 {[%clk 0:02:00]}  Qg6 {[%clk 0:02:49]} 18. Qd3 {[%clk 0:01:52]}  Rxe2 {[%clk 0:02:24]} 19. Qxg6 {[%clk 0:01:16]}  hxg6 {[%clk 0:02:21]} 20. Nd4 {[%clk 0:01:17]}  Ra2 {[%clk 0:02:18]} 21. Rb3 {[%clk 0:01:14]}  Be5 {[%clk 0:02:13]} 22. Rd1 {[%clk 0:01:13]}  Ra1 {[%clk 0:02:08]} 23. Rxc3 {[%clk 0:01:12]}  Nb6 {[%clk 0:01:13]} 24. Rcd3 {[%clk 0:01:00]}  Nc4 {[%clk 0:01:12]} 25. Nb3 {[%clk 0:01:00]}  Rb1 {[%clk 0:01:08]} 26. Nc5 {[%clk 0:00:57]}  Rb6 {[%clk 0:00:47]} 27. Nxb7 {[%clk 0:00:56]}  Rxb7 {[%clk 0:00:48]} 28. Bxd5 {[%clk 0:00:55]}  Rc7 {[%clk 0:00:47]} 29. Bxc4 {[%clk 0:00:54]}  Rxc4 {[%clk 0:00:48]} 30. Be3 {[%clk 0:00:54]}  Rxd1+ {[%clk 0:00:45]} 31. Rxd1 {[%clk 0:00:53]}  Rc3 {[%clk 0:00:45]} 32. a4 {[%clk 0:00:54]}  Ra3 {[%clk 0:00:45]} 33. a5 {[%clk 0:00:53]}  Ra4 {[%clk 0:00:45]} 34. Bd2 {[%clk 0:00:49]}  Bd6 {[%clk 0:00:44]} 35. Rb1 {[%clk 0:00:48]}  Kf8 {[%clk 0:00:42]} 36. b5 {[%clk 0:00:48]} 1-0


[Site "https://www.chess.com"]